bitfinex/quotes_ETHUSD_20240810
["timestamp","ask_amount","ask_price","bid_price","bid_amount"]
[1723290177645,1.89293,2641.4,2641.3,19.56]
[1723290177836,1.89291,2641.5,2641.3,19.74691814]
[1723290178428,3.78582,2641.5,2641.3,19.74691814]
[1723290179245,1.89291,2641.5,2641.3,19.74691814]
[1723290180547,3.78586,2641.4,2641.3,0.18691814]
[1723290180749,1.89313,2641.2,2640.8,2.4785]
[1723290181451,1.89322,2641.0,2640.8,2.4785]
[1723290181655,1.89337,2640.8,2640.5,2.4785]
[1723290184659,1.89344,2640.7,2640.5,2.4785]
[1723290184832,1.89337,2640.8,2640.5,2.4785]
[1723290186743,1.89329,2640.9,2640.5,2.4785]
[1723290186944,1.8933,2640.9,2640.5,2.72635]
[1723290187723,1.89338,2640.8,2640.5,2.72635]
[1723290189543,1.8931,2641.2,2640.6,2.42]
[1723290189764,1.8931,2641.2,2640.7,0.456137]
[1723290190623,1.89296,2641.4,2640.8,2.42]
[1723290191465,1.89305,2641.3,2640.9,0.18773629]
[1723290191650,1.89309,2641.2,2640.9,0.18773629]
[1723290191856,1.89322,2641.0,2640.9,0.18773629]
[1723290192365,1.89322,2641.0,2640.9,0.18767238]
[1723290192563,1.89322,2641.0,2640.7,2.42]
[1723290192763,1.89322,2641.0,2640.8,0.18774042]
[1723290192963,1.89322,2641.0,2640.7,2.42]
[1723290193168,1.89322,2641.0,2640.8,0.18774042]
[1723290193340,1.89322,2641.0,2640.7,2.42]
[1723290193663,1.89309,2641.2,2640.7,2.42]
[1723290193664,3.78621,2641.2,2640.8,0.18774042]
[1723290193865,1.89309,2641.2,2640.8,0.18774042]
[1723290194071,1.89315,2641.1,2640.7,2.42]
[1723290194274,1.89315,2641.1,2640.9,0.18769562]
[1723290194442,1.89315,2641.1,2640.8,0.18776366]
[1723290194642,1.89315,2641.1,2641.0,0.18762759]
[1723290194869,1.89315,2641.1,2640.9,0.18769562]
[1723290195170,1.89309,2641.2,2641.0,0.18762759]
[1723290195369,1.89309,2641.2,2640.7,5.015476]
[1723290195571,1.89309,2641.2,2640.8,0.18776366]
[1723290195780,1.89309,2641.2,2640.7,5.015476]
[1723290195934,1.89309,2641.2,2640.8,0.18776366]
[1723290196281,1.89309,2641.2,2640.7,5.015476]
[1723290196441,1.89309,2641.2,2640.9,0.18769562]
[1723290196640,1.89309,2641.2,2640.8,0.96001126]
[1723290196842,1.89309,2641.2,2641.0,0.18762759]
[1723290197042,3.78622,2641.2,2640.9,0.18769562]
[1723290197253,1.89309,2641.2,2641.1,0.18755956]
[1723290197480,1.89315,2641.1,2641.0,0.18762759]
[1723290197839,1.89315,2641.1,2640.7,2.42]
[1723290198044,1.89315,2641.1,2641.0,0.18762759]
[1723290198263,1.89315,2641.1,2640.7,2.42]
[1723290198459,1.89315,2641.1,2641.0,0.18762759]
[1723290198985,1.89309,2641.2,2640.7,2.42]
[1723290199159,3.78622,2641.2,2640.8,0.18776366]
[1723290199359,3.78622,2641.2,2640.7,3.31897817]
[1723290199557,3.78622,2641.2,2640.9,0.18769562]
[1723290199763,1.89309,2641.2,2640.7,3.31897817]
[1723290199966,3.78622,2641.2,2641.0,0.18762759]
[1723290200190,3.78622,2641.2,2640.7,3.31897817]
[1723290200375,3.78622,2641.2,2640.8,0.61017099]
[1723290200574,1.89309,2641.2,2640.8,0.79793465]
[1723290200751,3.78622,2641.2,2640.8,0.79793465]
[1723290201606,1.89309,2641.2,2640.8,0.79793465]
[1723290202511,1.89297,2641.4,2640.9,2.93113647]
[1723290202671,3.78596,2641.4,2640.9,2.93113647]
[1723290202873,1.89297,2641.4,2641.0,0.18762759]
[1723290203209,1.8931,2641.2,2641.0,0.18762759]
[1723290204511,1.89315,2641.1,2641.0,0.18762759]
[1723290206480,3.7863,2641.1,2641.0,0.18762759]
[1723290206681,1.89331,2640.9,2640.6,2.42]
[1723290207176,3.78636,2641.1,2640.6,2.42]
[1723290207406,1.89324,2641.0,2640.6,2.42]
[1723290207878,1.84299696,2641.0,2640.6,4.807364]
[1723290208613,1.89334,2640.9,2640.6,2.42]
[1723290209419,1.89337,2640.8,2640.6,2.42]
[1723290209620,1.89337,2640.8,2640.4,2.4576]
[1723290209801,1.89337,2640.8,2640.4,5.119428]
[1723290210203,1.89334,2640.9,2640.4,5.119428]
[1723290210724,3.7867,2640.9,2640.4,5.119428]
[1723290210919,1.89337,2640.8,2640.4,5.119428]
[1723290211109,1.89344,2640.7,2640.4,5.119428]
[1723290212527,1.89344,2640.7,2640.5,0.51813567]
[1723290213401,1.89344,2640.7,2640.4,2.4576]
[1723290213706,1.89344,2640.7,2640.6,1.129]
[1723290219329,1.89336,2640.8,2640.6,1.129]
[1723290221193,3.78652,2641.0,2640.7,0.1880583]
[1723290221394,2.3154,2641.4,2640.8,1.129]
[1723290221595,1.89312,2641.2,2641.0,1.129]
[1723290221795,1.89312,2641.2,2641.1,0.18776873]
[1723290222304,1.89297,2641.4,2641.1,0.18776873]
[1723290222624,3.78582,2641.5,2641.1,0.18776873]
[1723290222790,1.89296,2641.4,2641.2,1.129]
[1723290222992,1.89296,2641.4,2641.3,0.18758621]
[1723290223211,1.89296,2641.4,2641.2,1.129]
[1723290223425,1.89283,2641.6,2641.3,0.18748163]
[1723290223731,1.89283,2641.6,2641.4,1.129]
[1723290224116,1.89283,2641.6,2641.5,0.18734561]
[1723290225033,4.89267,2641.8,2641.5,0.18734561]
[1723290225340,1.89279,2641.6,2641.5,0.18734561]
[1723290230176,3.78558,2641.6,2641.5,0.18734561]
[1723290230447,4.164138,2641.6,2641.5,0.18734561]
[1723290230823,1.893,2641.3,2641.2,1.129]
[1723290231022,1.893,2641.3,2641.2,1.31598616]
[1723290235534,3.7858,2641.5,2641.2,1.31598616]
[1723290235738,1.89294,2641.4,2641.2,1.31598616]
[1723290238143,1.89288,2641.5,2641.2,1.31598616]
[1723290238727,1.89288,2641.5,2641.4,1.129]
[1723290239132,1.89288,2641.5,2641.4,1.31596628]
[1723290240330,1.89275,2641.7,2641.4,1.31596628]
[1723290240531,3.78553,2641.7,2641.4,1.31596628]
[1723290240856,1.89279,2641.6,2641.4,1.31596628]
[1723290241157,1.8928,2641.6,2641.4,1.31596628]
[1723290241753,3.78552,2641.7,2641.4,1.31596628]
[1723290241923,1.89275,2641.7,2641.4,1.31596628]
[1723290242450,1.89283,2641.6,2641.4,1.31596628]
[1723290242959,1.89275,2641.7,2641.4,1.31596628]
[1723290243163,3.0,2641.8,2641.5,2.4617]
[1723290243536,3.0,2641.8,2641.5,2.6485518]
[1723290243738,1.89261,2641.9,2641.5,2.6485518]
[1723290244343,3.0,2642.1,2641.5,0.1868518]
[1723290244344,1.89279,2641.6,2641.5,0.1868518]
[1723290245564,3.78558,2641.6,2641.5,0.1868518]
[1723290246042,1.89293,2641.4,2641.2,1.129]
[1723290248162,1.893,2641.3,2641.2,1.129]
[1723290248825,1.893,2641.3,2641.0,1.129]
[1723290249028,3.78606,2641.3,2641.0,1.129]
[1723290249230,1.89308,2641.2,2641.0,1.129]
[1723290249468,1.89319,2641.1,2640.8,19.56]
[1723290249688,1.89319,2641.1,2640.8,1.129]
[1723290250531,1.89319,2641.1,2641.0,1.129]
[1723290251335,1.89319,2641.1,2641.0,1.31650559]
[1723290255752,4.414447,2641.1,2641.0,0.18750559]
[1723290256157,4.414447,2641.1,2640.6,1.129]
[1723290256158,1.8934,2640.8,2640.6,1.129]
[1723290256970,1.8934,2640.8,2640.4,2.2588]
[1723290257173,1.8934,2640.8,2640.6,1.129]
[1723290257374,3.78683,2640.8,2640.4,2.2588]
[1723290257662,3.78683,2640.8,2640.5,1.129]
[1723290258704,1.89343,2640.7,2640.5,1.129]
[1723290259798,1.8934,2640.8,2640.5,1.129]
[1723290259995,1.8934,2640.8,2640.7,1.129]
[1723290260375,1.89325,2641.0,2640.7,1.129]
[1723290260673,1.89325,2641.0,2640.9,1.129]
[1723290261783,1.8931,2641.2,2640.9,1.129]
[1723290263906,1.89315,2641.1,2640.9,1.129]
[1723290264807,1.89322,2641.0,2640.7,1.129]
[1723290266298,1.89322,2641.0,2640.8,0.18786825]
[1723290266829,1.89322,2641.0,2640.9,0.18780021]
[1723290267111,1.89322,2641.0,2640.7,1.129]
[1723290267277,1.89322,2641.0,2640.9,0.18780021]
[1723290267480,1.89322,2641.0,2640.7,1.129]
[1723290267676,1.89322,2641.0,2640.9,0.18780021]
[1723290267882,1.89322,2641.0,2640.7,1.129]
[1723290268082,1.89322,2641.0,2640.9,0.18780021]
[1723290268618,1.89322,2641.0,2640.7,1.129]
[1723290268923,1.89322,2641.0,2640.9,0.18780021]
[1723290269139,1.89322,2641.0,2640.8,0.18786825]
[1723290269447,1.89322,2641.0,2640.7,1.129]
[1723290269448,1.89322,2641.0,2640.9,0.18780021]
[1723290269607,1.89331,2640.9,2640.7,1.129]
[1723290280198,1.89317,2641.1,2640.7,1.129]
[1723290280497,1.89317,2641.1,2640.9,1.129]
[1723290281274,1.89317,2641.1,2641.0,0.18780187]
[1723290294529,5.77553929,2641.1,2641.0,0.18780187]
[1723290294936,3.78666,2640.9,2640.7,1.129]
[1723290295800,1.89332,2640.9,2640.7,1.129]
[1723290296203,1.89332,2640.9,2640.8,0.18777528]
[1723290296401,1.89332,2640.9,2640.7,1.129]
[1723290296630,1.89332,2640.9,2640.8,0.18777528]
[1723290296942,1.89336,2640.8,2640.7,1.129]
[1723290297316,2.677358,2640.8,2640.2,2.3054]
[1723290297643,1.8938,2640.2,2639.9,2.3054]
[1723290297852,1.89391,2640.1,2639.9,2.3054]
[1723290298348,1.8938,2640.2,2639.9,2.3054]
[1723290298641,1.89391,2640.1,2639.8,1.129]
[1723290299217,2.502417,2640.2,2639.8,1.129]
[1723290299218,1.89397,2640.0,2639.8,1.129]
[1723290300327,1.89401,2639.9,2639.6,2.3054]
[1723290300547,1.89401,2639.9,2639.7,1.129]
[1723290301215,3.78838,2639.7,2639.4,3.4344]
[1723290301410,3.78838,2639.7,2639.4,1.129]
[1723290301411,3.78837,2639.7,2639.4,1.129]
[1723290301658,1.89429,2639.5,2639.4,1.129]
[1723290301813,1.89429,2639.5,2639.2,3.4344]
[1723290302148,3.78864,2639.5,2639.2,3.4344]
[1723290302449,3.7884,2639.7,2639.4,1.129]
[1723290302660,1.89404,2639.9,2639.4,1.129]
[1723290303348,1.89404,2639.9,2639.6,1.129]
[1723290303641,1.8939,2640.1,2639.8,1.129]
[1723290303642,3.78783,2640.1,2639.8,1.129]
[1723290303944,1.89395,2640.0,2639.8,1.129]
[1723290304152,3.0,2640.0,2639.8,1.129]
[1723290304351,3.0,2640.2,2639.8,1.129]
[1723290304657,4.89379,2640.2,2639.8,1.129]
[1723290305163,1.89374,2640.3,2640.0,1.129]
[1723290305510,3.78752,2640.3,2640.0,1.129]
[1723290305756,1.89391,2640.1,2639.7,1.129]
[1723290305925,1.89405,2639.9,2639.7,1.129]
[1723290307961,1.89389,2640.1,2639.7,1.129]
[1723290308473,1.89399,2640.0,2639.7,1.129]
[1723290308880,1.89403,2639.9,2639.7,1.129]
[1723290309189,1.89403,2639.9,2639.3,19.56]
[1723290309190,1.89408,2639.8,2639.3,19.56]
[1723290309387,1.8942,2639.7,2639.5,1.129]
[1723290309609,1.8943,2639.5,2639.1,2.283]
[1723290309756,1.8943,2639.5,2639.1,3.412]
[1723290310403,1.89451,2639.2,2639.1,2.283]
[1723290310584,1.89463,2639.1,2638.7,22.972]
[1723290310870,1.89466,2639.0,2638.7,20.689]
[1723290311168,1.89472,2638.9,2638.7,19.56]
[1723290311370,1.89472,2638.9,2638.8,0.18451414]
[1723290312252,1.89472,2638.9,2638.7,1.129]
[1723290312575,1.89466,2639.0,2638.8,0.18451414]
[1723290312895,1.8944,2639.4,2638.9,1.129]
[1723290313056,1.89423,2639.6,2639.3,1.129]
[1723290313462,3.0,2639.7,2639.3,3.412]
[1723290313657,1.89411,2639.8,2639.4,0.18444718]
[1723290313993,1.89424,2639.6,2639.4,0.18444718]
[1723290314368,3.0,2639.7,2639.4,0.18444718]
[1723290314689,1.89406,2639.9,2639.4,0.4311919]
[1723290314901,1.89397,2640.0,2639.4,0.4311919]
[1723290314902,1.89408,2639.8,2639.4,0.4311919]
[1723290315196,1.89397,2640.0,2639.4,0.4311919]
[1723290315391,1.89383,2640.2,2639.6,1.89422]
[1723290315596,1.89383,2640.2,2639.6,2.283]
[1723290315798,3.78768,2640.2,2639.7,0.18398216]
[1723290316009,1.89387,2640.1,2639.7,0.18398216]
[1723290316994,1.89387,2640.1,2639.7,0.66695319]
[1723290317666,1.89394,2640.0,2639.7,0.18398216]
[1723290317855,1.89387,2640.1,2639.7,0.18398216]
[1723290318055,1.89406,2639.9,2639.7,0.18398216]
[1723290318300,1.89406,2639.9,2639.3,4.17738]
[1723290318505,1.89408,2639.8,2639.3,2.283]
[1723290318861,1.89416,2639.7,2639.3,2.283]
[1723290319093,1.89406,2639.9,2639.3,2.283]
[1723290319268,1.89406,2639.9,2639.4,0.688946]
[1723290319795,1.89389,2640.1,2639.6,2.283]
[1723290319998,3.78782,2640.1,2639.6,2.283]
[1723290320164,1.89395,2640.0,2639.6,2.283]
[1723290321063,1.89389,2640.1,2639.6,2.283]
[1723290321363,1.89402,2639.9,2639.6,2.283]
[1723290321585,1.89409,2639.8,2639.6,2.283]
[1723290321990,1.89409,2639.8,2639.3,2.283]
[1723290322800,1.89402,2639.9,2639.3,2.283]
[1723290322801,1.89416,2639.7,2639.3,2.283]
[1723290323168,1.89424,2639.6,2639.3,2.283]
[1723290323806,1.8943,2639.5,2639.3,2.283]
[1723290324899,1.8943,2639.5,2639.1,2.283]
[1723290325065,3.78865,2639.5,2639.1,2.283]
[1723290325261,1.8943,2639.5,2639.1,2.283]
[1723290325901,1.89444,2639.3,2639.1,2.283]
[1723290326303,3.78866,2639.5,2639.2,0.18421846]
[1723290326507,1.8943,2639.5,2639.2,0.18421846]
[1723290326801,1.89417,2639.7,2639.2,0.18421846]
[1723290327373,1.89427,2639.6,2639.2,0.18421846]
[1723290328703,1.89403,2639.9,2639.2,2.07872846]
[1723290329002,1.89403,2639.9,2639.2,3.97316846]
[1723290329321,1.89403,2639.9,2639.2,2.07865846]
[1723290329601,1.89403,2639.9,2639.3,2.464]
[1723290329803,1.89403,2639.9,2639.4,0.18414015]
[1723290330005,1.89409,2639.8,2639.4,0.18414015]
[1723290330795,1.89415,2639.7,2639.4,0.18414015]
[1723290330995,3.78835,2639.7,2639.4,0.18414015]
[1723290331503,1.89415,2639.7,2639.4,0.18414015]
[1723290331722,3.78836,2639.7,2639.4,0.18414015]
[1723290331903,1.89415,2639.7,2639.4,0.18414015]
[1723290332111,1.89422,2639.6,2639.4,0.18414015]
[1723290332479,1.89422,2639.6,2639.1,2.464]
[1723290332702,1.89422,2639.6,2639.5,0.18406045]
[1723290332905,0.24943397,2639.7,2639.2,1.89446]
[1723290333095,1.89405,2639.9,2639.5,0.18406045]
[1723290333293,1.89405,2639.9,2639.3,4.35838]
[1723290333577,1.89405,2639.9,2639.6,0.18419506]
[1723290333780,1.89405,2639.9,2639.3,2.464]
[1723290333781,1.8941,2639.8,2639.3,2.464]
[1723290334423,4.89397,2640.0,2639.5,2.464]
[1723290334582,1.89377,2640.3,2639.6,1.96847176]
[1723290334779,1.8938,2640.2,2639.7,2.464]
[1723290335084,0.59353292,2640.7,2640.0,2.712]
[1723290335434,1.89302,2641.3,2640.6,4.3575]
[1723290335747,1.89309,2641.2,2640.6,4.3575]
[1723290335881,1.89309,2641.2,2640.7,0.18302932]
[1723290336219,0.59330332,2641.7,2640.9,1.89322]
[1723290336377,1.89265,2641.8,2640.9,1.89322]
[1723290336775,1.89298,2641.4,2641.0,0.18282521]
[1723290337175,1.893,2641.3,2640.8,2.464]
[1723290337611,1.89312,2641.2,2640.8,2.464]
[1723290337826,1.89312,2641.2,2640.9,0.18289324]
[1723290338065,1.89315,2641.1,2640.9,0.18289324]
[1723290338981,1.89334,2640.9,2640.2,2.464]
[1723290339406,1.89341,2640.8,2640.2,2.464]
[1723290339979,1.89349,2640.7,2640.2,2.464]
[1723290340821,1.89331,2640.9,2640.2,2.464]
[1723290341122,1.89331,2640.9,2640.2,5.064722]
[1723290341721,4.89323,2641.0,2640.4,1.89364]
[1723290341893,1.89323,2641.0,2640.4,1.89364]
[1723290342213,1.8932,2641.1,2640.5,0.18262143]
[1723290343482,1.8933,2640.9,2640.5,0.18262143]
[1723290343676,1.89337,2640.8,2640.3,19.56]
[1723290343881,1.89337,2640.8,2640.6,0.18255338]
[1723290344077,1.8933,2640.9,2640.3,21.45367]
[1723290344354,4.89328,2641.0,2640.7,0.18248533]
[1723290344517,1.89328,2641.0,2640.3,23.34735]
[1723290344682,4.89328,2641.0,2640.8,0.18193081]
[1723290344884,4.89328,2641.0,2640.3,3.78735]
[1723290345216,4.89328,2641.0,2640.9,0.18182227]
[1723290345387,4.89328,2641.0,2640.3,1.89367]
[1723290345587,4.89328,2641.0,2640.9,0.18182227]
[1723290345896,3.0,2641.0,2640.9,0.18182227]
[1723290346100,4.89322,2641.0,2640.4,1.8936]
[1723290346300,4.89322,2641.0,2640.9,0.18182227]
[1723290346502,4.89322,2641.0,2640.4,1.8936]
[1723290346727,4.89322,2641.0,2640.9,0.18182227]
[1723290347016,4.89322,2641.0,2640.4,1.8936]
[1723290347184,4.89322,2641.0,2640.9,0.18182227]
[1723290347388,4.89322,2641.0,2640.3,3.78734]
[1723290347622,4.89322,2641.0,2640.4,2.581134]
[1723290347823,4.89322,2641.0,2640.4,2.7632965]
[1723290348561,1.89329,2640.9,2640.4,2.7632965]
[1723290350062,3.0,2641.0,2640.4,4.6569465]
[1723290350385,1.89317,2641.1,2640.5,2.4809]
[1723290350535,3.78637,2641.1,2640.5,4.97329967]
[1723290350734,1.89317,2641.1,2640.6,0.18204375]
[1723290351128,1.89326,2641.0,2640.6,0.18204375]
[1723290351674,4.89326,2641.0,2640.6,0.18204375]
[1723290352661,1.89326,2641.0,2640.6,0.18204375]
[1723290355359,2.382586,2641.0,2640.6,0.18204375]
[1723290355682,4.275866,2641.0,2640.6,0.18204375]
[1723290355884,1.89326,2641.0,2640.6,0.18204375]
[1723290356193,3.78653,2641.0,2640.6,0.18204375]
[1723290356348,1.89326,2641.0,2640.6,0.18204375]
[1723290356554,3.78653,2641.0,2640.6,0.18204375]
[1723290356775,1.89343,2640.7,2640.6,0.18204375]
[1723290357179,1.89343,2640.7,2640.3,2.4809]
[1723290357652,1.89343,2640.7,2640.4,0.18208725]
[1723290358054,2.571913,2641.0,2640.4,2.07570725]
[1723290358259,3.0,2641.1,2640.7,2.4809]
[1723290358574,3.0,2641.1,2640.8,0.18193658]
[1723290358778,1.89311,2641.2,2640.8,0.18193658]
[1723290358977,1.89311,2641.2,2640.7,2.4809]
[1723290359181,1.89319,2641.1,2640.9,0.18186275]
[1723290359387,3.0,2641.1,2640.8,0.18193079]
[1723290359586,1.89315,2641.1,2641.0,0.18179472]
[1723290359755,4.89315,2641.1,2640.9,0.18186275]
[1723290360085,3.0,2641.1,2641.0,0.18179472]
[1723290360289,4.89303,2641.3,2640.7,2.4809]
[1723290360472,4.89303,2641.3,2640.7,2.97147571]
[1723290360672,3.0,2641.3,2640.7,2.97147571]
[1723290360874,6.78593,2641.4,2640.8,2.07512505]
[1723290361075,1.89282,2641.6,2640.9,4.37412]
[1723290361278,1.89282,2641.6,2640.9,4.55582072]
[1723290361584,1.89282,2641.6,2640.9,2.73832549]
[1723290361749,1.89295,2641.4,2640.9,2.66260072]
[1723290363478,1.89295,2641.4,2640.9,4.55587072]
[1723290365171,3.0,2641.5,2640.9,7.0314862]
[1723290365377,1.89282,2641.6,2640.9,5.1382162]
[1723290365553,3.78566,2641.6,2641.0,1.89317]
[1723290365756,1.89286,2641.5,2641.0,2.07462913]
[1723290365976,4.89286,2641.5,2641.0,2.07462913]
[1723290367697,4.89286,2641.5,2641.0,0.18145913]
[1723290367995,3.0,2641.5,2641.1,2.34]
[1723290368165,4.89286,2641.5,2641.1,2.34]
[1723290368363,4.89286,2641.5,2641.2,0.18132308]
[1723290376200,3.0,2641.5,2641.2,0.18132308]
[1723290376370,1.89282,2641.6,2641.2,0.18132308]
[1723290376570,1.89282,2641.6,2641.3,2.34]
[1723290376808,1.89267,2641.8,2641.3,3.64904099]
[1723290376991,1.89267,2641.8,2641.5,1.128]
[1723290377471,1.89267,2641.8,2641.6,0.18083698]
[1723290377805,1.89265,2641.8,2641.6,0.18083698]
[1723290379602,3.0,2641.9,2641.6,0.18083698]
[1723290379805,1.89253,2642.0,2641.7,3.468]
[1723290379970,1.89239,2642.2,2641.7,3.8328837]
[1723290380170,1.89239,2642.2,2641.8,0.18049855]
[1723290380491,1.89239,2642.2,2641.7,3.8328837]
[1723290380492,1.89239,2642.2,2641.9,1.128]
[1723290380801,1.89239,2642.2,2641.9,1.30824549]
[1723290381001,3.78481,2642.2,2641.9,1.30824549]
[1723290381203,1.89239,2642.2,2641.9,1.30824549]
[1723290381572,3.78481,2642.2,2641.9,1.30824549]
[1723290381769,4.89248,2642.1,2641.9,1.30824549]
[1723290381979,3.785,2642.0,2641.9,0.18024549]
[1723290382312,1.8925,2642.0,2641.5,3.468]
[1723290382492,3.78506,2642.0,2641.5,3.468]
[1723290382693,3.78506,2642.0,2641.9,0.18011827]
[1723290382887,1.89257,2641.9,2641.5,3.468]
[1723290383086,1.89257,2641.9,2641.6,0.18037429]
[1723290384478,1.89265,2641.8,2641.6,0.18037429]
[1723290385908,1.89265,2641.8,2641.6,0.17945915]
[1723290386087,1.8925,2642.0,2641.6,0.17945915]
[1723290386287,1.89258,2641.9,2641.6,0.17945915]
[1723290386815,1.89265,2641.8,2641.6,0.17945915]
[1723290387014,1.89272,2641.7,2641.6,0.17945915]
[1723290387307,1.89272,2641.7,2641.2,2.34]
[1723290387512,1.8928,2641.6,2641.2,2.34]
[1723290391591,1.89267,2641.8,2641.2,4.23305]
[1723290393015,1.89267,2641.8,2641.3,1.893]
[1723290393215,3.0,2641.9,2641.4,4.3655]
[1723290393521,2.524716,2642.2,2641.5,2.4726]
[1723290393681,3.0,2642.1,2641.5,2.4726]
[1723290394027,1.89251,2642.0,2641.5,2.4726]
[1723290394615,3.8524716,2642.1,2641.6,4.36538]
[1723290394616,3.0,2642.1,2641.6,4.36538]
[1723290395185,4.89245,2642.1,2641.6,4.36538]
[1723290395412,4.89245,2642.1,2641.6,2.4726]
[1723290397626,1.89257,2642.0,2641.6,2.4726]
[1723290397834,4.463626,2642.0,2641.6,2.4726]
[1723290398147,2.571056,2642.0,2641.6,2.4726]
[1723290398304,1.89256,2642.0,2641.6,2.4726]
[1723290398710,3.0,2642.1,2641.6,2.4726]
[1723290399787,3.0,2642.1,2641.6,4.36537]
[1723290400038,1.89239,2642.2,2641.6,4.36537]
[1723290401081,3.7848,2642.2,2641.6,4.36537]
[1723290401242,3.0,2642.1,2641.6,4.36537]
[1723290401448,3.0,2642.1,2641.7,0.18030469]
[1723290402173,4.89243,2642.1,2641.7,0.18030469]
[1723290403178,3.0,2642.1,2641.8,2.4726]
[1723290403379,1.89239,2642.2,2641.8,2.4726]
[1723290403673,1.89239,2642.2,2641.8,2.6528367]
[1723290403879,1.89251,2642.0,2641.8,2.6528367]
[1723290409686,3.0,2642.1,2641.8,2.6528367]
[1723290409854,1.89239,2642.2,2641.8,2.6528367]
[1723290410419,2.48527026,2642.6,2641.9,1.128]
[1723290410555,1.89215,2642.5,2642.1,1.128]
[1723290410894,1.89215,2642.5,2642.2,0.17968143]
[1723290411598,4.89215,2642.5,2642.2,0.17968143]
[1723290415111,1.89222,2642.4,2642.2,0.17968143]
[1723290415292,4.89222,2642.4,2642.2,0.17968143]
[1723290415497,3.0,2642.4,2642.3,3.4819]
[1723290415692,1.89211,2642.6,2642.3,3.4819]
[1723290415909,1.89214,2642.5,2642.3,3.66108566]
[1723290416115,4.89214,2642.5,2642.3,3.66108566]
[1723290416408,3.0,2642.5,2642.3,3.66108566]
[1723290416928,1.89216,2642.5,2642.3,3.66108566]
[1723290417228,4.89216,2642.5,2642.3,3.66108566]
[1723290417412,1.89221,2642.4,2642.3,0.17918566]
[1723290417720,1.89229,2642.3,2642.1,1.128]
[1723290418924,2.381396,2642.5,2642.2,2.3539]
[1723290418925,1.89218,2642.5,2642.2,2.3539]
[1723290419089,1.89218,2642.5,2642.2,2.70209]
[1723290419289,1.89218,2642.5,2642.2,2.3539]
[1723290419796,3.78437,2642.5,2642.2,2.3539]
[1723290420134,1.89218,2642.5,2642.3,1.128]
[1723290421096,1.89189,2642.9,2642.4,2.3539]
[1723290421446,1.89189,2642.9,2642.2,1.89236]
[1723290421447,1.89189,2642.9,2642.7,2.3539]
[1723290421612,1.89197,2642.8,2642.7,2.3539]
[1723290421787,1.892,2642.7,2642.6,1.128]
[1723290421987,3.78406,2642.7,2642.4,3.4819]
[1723290422424,1.89207,2642.6,2642.4,3.4819]
[1723290422593,1.89222,2642.4,2642.2,1.128]
[1723290424554,3.78423,2642.6,2642.2,1.128]
[1723290425114,1.89211,2642.6,2642.2,1.128]
[1723290425513,3.78423,2642.6,2642.2,1.128]
[1723290425931,1.89211,2642.6,2642.2,1.128]
[1723290426124,3.78423,2642.6,2642.2,1.128]
[1723290426841,1.89211,2642.6,2642.2,1.128]
[1723290427226,1.89196,2642.8,2642.4,3.4819]
[1723290427426,3.0,2643.1,2642.7,2.3539]
[1723290427627,1.89171,2643.2,2642.8,1.128]
[1723290427932,1.8917,2643.2,2643.0,1.128]
[1723290428653,3.78307,2643.4,2643.0,1.128]
[1723290428854,2.269837,2643.4,2643.0,1.128]
[1723290429039,1.89164,2643.2,2643.0,1.128]
[1723290429369,1.89153,2643.4,2643.1,2.3375]
[1723290429667,1.89153,2643.4,2643.2,1.128]
[1723290429828,2.269822,2643.4,2643.1,2.3375]
[1723290430150,1.89153,2643.4,2643.1,2.3375]
[1723290431432,1.89153,2643.4,2643.2,0.1782101]
[1723290431739,3.78308,2643.4,2643.2,0.1782101]
[1723290432439,1.89153,2643.4,2643.2,0.1782101]
[1723290432833,3.7831,2643.4,2643.2,0.1782101]
[1723290433034,1.89157,2643.3,2643.2,0.1782101]
[1723290433988,0.67831,2643.4,2642.8,2.3375]
[1723290434272,1.89185,2643.0,2642.9,0.17804988]
[1723290434846,1.89174,2643.1,2642.4,2.3375]
[1723290435039,1.89174,2643.1,2642.9,2.51554988]
[1723290435444,1.8916,2643.3,2642.9,2.76710487]
[1723290435645,1.89164,2643.2,2642.9,2.51554988]
[1723290436073,1.89178,2643.1,2642.9,2.51554988]
[1723290437575,1.89177,2643.1,2642.9,2.51554988]
[1723290437749,1.89178,2643.0,2642.9,0.17804988]
[1723290437935,1.89178,2643.0,2642.7,2.3375]
[1723290438137,1.89178,2643.0,2642.8,0.17811782]
[1723290438336,1.89178,2643.0,2642.7,2.3375]
[1723290438565,1.89178,2643.0,2642.8,0.17811782]
[1723290438771,1.89178,2643.0,2642.7,2.3375]
[1723290438971,1.89178,2643.0,2642.8,0.17811782]
[1723290439137,1.89177,2643.1,2642.7,2.3375]
[1723290439471,1.89177,2643.1,2642.8,0.17811782]
[1723290439765,3.78354,2643.1,2642.7,2.3375]
[1723290439937,3.78354,2643.1,2642.8,0.17811782]
[1723290440353,1.89177,2643.1,2642.7,2.3375]
[1723290440558,1.89177,2643.1,2642.8,0.17782312]
[1723290440772,1.89177,2643.1,2642.7,2.3375]
[1723290440972,1.89177,2643.1,2642.8,0.17782312]
[1723290441148,1.89177,2643.1,2642.7,2.3375]
[1723290441346,1.89177,2643.1,2642.9,0.17775518]
[1723290441665,3.78354,2643.1,2642.7,2.3375]
[1723290441872,3.78354,2643.1,2643.0,0.17768726]
[1723290442100,3.78354,2643.1,2642.7,2.3375]
[1723290442252,3.78354,2643.1,2643.0,0.17768726]
[1723290442451,3.78354,2643.1,2642.7,2.3375]